lending/lending_fUSD_20250913
["ID","MTS","AMOUNT","RATE_DAILY","PERIOD"]
[385280215,1757734264699,-269.50151251,0.00035616,2]
[385280216,1757734264708,-152.47209928,0.00035616,2]
[385280217,1757734264720,-548.37790072,0.00035616,2]
[385280218,1757734264730,-400.0,0.00035616,2]
[385280219,1757734264741,-400.0,0.00035616,2]
[385280220,1757734264750,-304.66835428,0.00035616,2]
[385280221,1757734264762,-95.33164572,0.00035616,2]
[385280222,1757734264771,-529.53,0.00035616,2]
[385280223,1757734264781,-30.11020986,0.00035616,2]
[385280224,1757734264896,-369.88979014,0.00035616,2]
[385280225,1757734264905,-96.92391493,0.00035616,2]
[385280226,1757734264952,-20.38675904,0.00035616,2]
[385280227,1757734324181,512.78047823,0.00027143,120]
[385280243,1757734767151,250.0,0.00015,2]
[385280244,1757735133334,159.635,0.00030137,120]
[385280246,1757735357141,-298.3588,0.00024675,2]
[385280247,1757735357163,-248.56229674,0.00024875,2]
[385280248,1757735357185,-4298.09384726,0.000249,2]
[385280263,1757735432273,-2574.78561726,0.000249,2]
[385280264,1757735432288,-255.90895852,0.00027297,2]
[385280265,1757735432303,-150.66,0.00027397,2]
[385280266,1757735432319,-268.0,0.000274,5]
[385280267,1757735432333,-25.66730355,0.00032706,3]
[385280268,1757735432373,-126.33269645,0.00032706,3]
[385280269,1757735432388,-515.60081738,0.00033472,2]
[385280270,1757735432402,-297.082,0.00033596,36]
[385280271,1757735432418,-397.27558182,0.00033737,3]
[385280272,1757735432708,-802.72441818,0.00033737,3]
[385280273,1757735432723,-303.0,0.00033737,3]
[385280274,1757735432739,-277.35679052,0.00033738,2]
[385280275,1757735432754,-151.0,0.00033738,2]
[385280276,1757735432769,-151.0,0.00033738,2]
[385280277,1757735432784,-151.0,0.00033738,2]
[385280278,1757735432801,-151.0,0.00033738,2]
[385280279,1757735432820,-151.0,0.00033738,2]
[385280280,1757735432834,-151.0,0.00033738,2]
[385280281,1757735432849,-209.23038144,0.00033738,2]
[385280282,1757735432863,-500.0,0.00033738,2]
[385280283,1757735432878,-500.0,0.00033738,2]
[385280284,1757735432892,-500.0,0.00033738,2]
[385280285,1757735432907,-500.0,0.00033738,2]
[385280286,1757735432921,-500.0,0.00033738,2]
[385280287,1757735432936,-500.0,0.00033738,2]
[385280288,1757735432950,-500.0,0.00033738,2]
[385280289,1757735432966,-500.0,0.00033738,2]
[385280290,1757735432980,-500.0,0.00033738,2]
[385280291,1757735432992,-500.0,0.00033738,2]
[385280292,1757735433001,-500.0,0.00033738,2]
[385280293,1757735433011,-500.0,0.00033738,2]
[385280294,1757735433020,-500.0,0.00033738,2]
[385280295,1757735433030,-500.0,0.00033738,2]
[385280296,1757735433040,-500.0,0.00033738,2]
[385280297,1757735433050,-500.0,0.00033738,2]
[385280298,1757735433060,-502.76316934,0.00033738,2]
[385280299,1757735433070,-179.44,0.00033757,30]
[385280300,1757735433079,-2038.0,0.00033759,2]
[385280301,1757735433089,-1260.0,0.00033759,2]
[385280302,1757735433099,-3388.0,0.00033759,2]
[385280303,1757735433109,-887.0,0.00033759,2]
[385280304,1757735433119,-1579.0,0.00033759,2]
[385280305,1757735433130,-601.0,0.00033759,2]
[385280306,1757735433616,-1302.0,0.00033759,2]
[385280307,1757735433653,-568.0,0.00033759,2]
[385280308,1757735433683,-1177.0,0.00033759,2]
[385280309,1757735433692,-897.0,0.00033759,2]
[385280310,1757735433702,-812.0,0.00033759,2]
[385280311,1757735433711,-4168.0,0.00033759,2]
[385280312,1757735433721,-6173.0,0.00033759,2]
[385280313,1757735433731,-726.0,0.00033759,2]
[385280314,1757735433744,-158.39,0.00033778,2]
[385280315,1757735433754,-150.0,0.00033824,7]
[385280316,1757735433763,-282.03,0.00033833,2]
[385280317,1757735433775,-754.04,0.00033842,2]
[385280318,1757735433784,-1000.0,0.000339,2]
[385280319,1757735433794,-200.0,0.00034,30]
[385280320,1757735433806,-152.66,0.00034123,2]
[385280321,1757735433816,-250.0,0.00034133,2]
[385280322,1757735433826,-800.0,0.00034246,60]
[385280323,1757735433835,-1500.0,0.00034317,2]
[385280324,1757735433845,-800.0,0.0003452,60]
[385280325,1757735433855,-150.66,0.00034703,2]
[385280326,1757735433865,-930.93990318,0.00034794,60]
[385280327,1757735433875,-166.91,0.00034861,2]
[385280328,1757735433885,-410.6,0.00034861,2]
[385280329,1757735433895,-1190.97,0.00034861,2]
[385280330,1757735433905,-410.6,0.00034861,2]
[385280331,1757735433915,-166.91,0.00034861,2]
[385280332,1757735433925,-539.59,0.00034861,2]
[385280333,1757735433936,-1190.97,0.00034861,2]
[385280334,1757735433946,-292.81,0.00034861,2]
[385280335,1757735433956,-500.0,0.0003487,2]
[385280336,1757735433966,-4586.2994,0.0003489,2]
[385280337,1757735433976,-410.6,0.00034978,2]
[385280338,1757735433986,-1221.28,0.00034978,2]
[385280339,1757735433996,-171.59,0.00034978,2]
[385280340,1757735434005,-1255.0695761,0.00035,7]
[385280341,1757735434016,-5000.0,0.00035,3]
[385280342,1757735434025,-822.0,0.00035,2]
[385280343,1757735434035,-552.0,0.00035,2]
[385280344,1757735434044,-3059.0,0.00035065,2]
[385280345,1757735434056,-287.61899177,0.00035107,2]
[385280346,1757735434065,-200.0,0.00035331,10]
[385280347,1757735434075,-273.21968105,0.00035459,2]
[385280348,1757735434085,-2100.0,0.000355,12]
[385280349,1757735434095,-5000.0,0.00035516,2]
[385280350,1757735434104,-861.6243,0.00035516,2]
[385280351,1757735434114,-279.55930018,0.00035516,2]
[385280352,1757735434123,-839.33674156,0.00035516,37]
[385280353,1757735434132,-4300.0,0.000356,12]
[385280354,1757735434142,-430.84,0.00035606,2]
[385280355,1757735434151,-500.0,0.00035614,2]
[385280356,1757735434160,-300.0,0.00035615,10]
[385280357,1757735434170,-300.0,0.00035615,10]
[385280358,1757735434179,-1041.06162395,0.00035615,30]
[385280359,1757735434189,-300.0,0.00035616,2]
[385280360,1757735434202,-400.0,0.00035616,2]
[385280361,1757735434212,-400.0,0.00035616,2]
[385280362,1757735434221,-400.0,0.00035616,2]
[385280363,1757735434231,-400.0,0.00035616,2]
[385280364,1757735434241,-400.0,0.00035616,2]
[385280365,1757735434250,-400.0,0.00035616,2]
[385280366,1757735434260,-400.0,0.00035616,2]
[385280367,1757735434270,-400.0,0.00035616,2]
[385280368,1757735434280,-400.0,0.00035616,2]
[385280369,1757735434289,-400.0,0.00035616,2]
[385280370,1757735434299,-400.0,0.00035616,2]
[385280371,1757735434308,-229.41019587,0.00035616,2]
[385280372,1757735434318,-400.0,0.00035616,2]
[385280373,1757735434328,-400.0,0.00035616,2]
[385280374,1757735434339,-400.0,0.00035616,2]
[385280375,1757735434348,-400.0,0.00035616,2]
[385280376,1757735434358,-400.0,0.00035616,2]
[385280377,1757735434367,-400.0,0.00035616,2]
[385280378,1757735434376,-400.0,0.00035616,2]
[385280379,1757735434386,-402.3469138,0.00035616,2]
[385280380,1757735434395,-400.0,0.00035616,2]
[385280381,1757735434407,-400.0,0.00035616,2]
[385280382,1757735434416,-400.0,0.00035616,2]
[385280383,1757735434426,-401.41159358,0.00035616,2]
[385280384,1757735434436,-400.0,0.00035616,2]
[385280385,1757735434447,-401.80042314,0.00035616,2]
[385280386,1757735434458,-401.44375249,0.00035616,2]
[385280387,1757735434467,-402.33870725,0.00035616,2]
[385280388,1757735434478,-400.0,0.00035616,2]
[385280389,1757735434487,-400.0,0.00035616,2]
[385280390,1757735434496,-400.0,0.00035616,2]
[385280391,1757735434507,-400.0,0.00035616,2]
[385280392,1757735434518,-400.0,0.00035616,2]
[385280393,1757735434530,-400.0,0.00035616,2]
[385280394,1757735434539,-400.0,0.00035616,2]
[385280395,1757735434549,-400.0,0.00035616,2]
[385280396,1757735434559,-400.0,0.00035616,2]
[385280397,1757735434569,-402.61413006,0.00035616,2]
[385280398,1757735434578,-401.18620596,0.00035616,2]
[385280399,1757735434588,-249.16907578,0.00035616,2]
[385280400,1757735434598,-400.0,0.00035616,2]
[385280401,1757735434607,-400.0,0.00035616,2]
[385280402,1757735434617,-712.67,0.00035616,2]
[385280403,1757735434626,-712.67,0.00035616,2]
[385280404,1757735434636,-712.67,0.00035616,2]
[385280405,1757735434646,-712.67,0.00035616,2]
[385280406,1757735434656,-712.67,0.00035616,2]
[385280407,1757735434666,-712.67,0.00035616,2]
[385280408,1757735434676,-712.67,0.00035616,2]
[385280409,1757735434686,-712.67,0.00035616,2]
[385280410,1757735434696,-712.67,0.00035616,2]
[385280411,1757735434705,-401.53215302,0.00035616,2]
[385280412,1757735434715,-712.67,0.00035616,2]
[385280413,1757735434725,-712.67,0.00035616,2]
[385280414,1757735434736,-397.21273447,0.00035616,2]
[385280415,1757735434746,-400.0,0.00035616,2]
[385280416,1757735434756,-409.27281638,0.00035616,2]
[385280417,1757735434766,-400.0,0.00035616,2]
[385280418,1757735434775,-400.0,0.00035616,2]
[385280419,1757735434785,-403.06925758,0.00035616,2]
[385280420,1757735434794,-400.0,0.00035616,2]
[385280421,1757735434805,-400.0,0.00035616,2]
[385280422,1757735434817,-400.0,0.00035616,2]
[385280423,1757735434827,-400.0,0.00035616,2]
[385280424,1757735434836,-400.0,0.00035616,2]
[385280425,1757735434846,-400.0,0.00035616,2]
[385280426,1757735434856,-400.0,0.00035616,2]
[385280427,1757735434865,-400.0,0.00035616,2]
[385280428,1757735434876,-400.0,0.00035616,2]
[385280429,1757735434886,-400.0,0.00035616,2]
[385280430,1757735434895,-464.97,0.00035616,2]
[385280431,1757735434905,-410.16,0.00035616,2]
[385280432,1757735434915,-400.0,0.00035616,2]
[385280433,1757735434924,-400.0,0.00035616,2]
[385280434,1757735434933,-400.0,0.00035616,2]
[385280435,1757735434944,-400.0,0.00035616,2]
[385280436,1757735434954,-400.0,0.00035616,2]
[385280437,1757735434963,-400.0,0.00035616,2]
[385280438,1757735434973,-400.0,0.00035616,2]
[385280439,1757735434983,-400.0,0.00035616,2]
[385280440,1757735434993,-421.6,0.00035616,2]
[385280441,1757735435003,-697.17,0.00035616,2]
[385280442,1757735435012,-402.43813289,0.00035616,2]
[385280443,1757735435021,-400.0,0.00035616,2]
[385280444,1757735435031,-400.0,0.00035616,2]
[385280445,1757735435041,-400.0,0.00035616,2]
[385280446,1757735435051,-400.0,0.00035616,2]
[385280447,1757735435060,-400.0,0.00035616,2]
[385280448,1757735435070,-419.65,0.00035616,2]
[385280449,1757735435079,-400.0,0.00035616,2]
[385280450,1757735435088,-400.0,0.00035616,2]
[385280451,1757735435098,-199.5290644,0.00035616,2]
[385280452,1757735435111,-400.0,0.00035616,2]
[385280453,1757735435120,-400.0,0.00035616,2]
[385280454,1757735435130,-400.0,0.00035616,2]
[385280455,1757735435140,-400.0,0.00035616,2]
[385280456,1757735435151,-400.0,0.00035616,2]
[385280457,1757735435160,-400.0,0.00035616,2]
[385280458,1757735435170,-400.0,0.00035616,2]
[385280459,1757735435179,-400.0,0.00035616,2]
[385280460,1757735435192,-400.0,0.00035616,2]
[385280461,1757735435202,-401.61914581,0.00035616,2]
[385280462,1757735435211,-400.0,0.00035616,2]
[385280463,1757735435221,-400.0,0.00035616,2]
[385280464,1757735435231,-400.0,0.00035616,2]
[385280465,1757735435240,-400.0,0.00035616,2]
[385280466,1757735435250,-400.0,0.00035616,2]
[385280467,1757735435260,-568.84,0.00035616,2]
[385280468,1757735435270,-400.0,0.00035616,2]
[385280469,1757735435280,-400.0,0.00035616,2]
[385280470,1757735435290,-406.54,0.00035616,2]
[385280471,1757735435301,-400.0,0.00035616,2]
[385280472,1757735435312,-400.0,0.00035616,2]
[385280473,1757735435322,-400.0,0.00035616,2]
[385280474,1757735435332,-400.0,0.00035616,2]
[385280475,1757735435342,-400.0,0.00035616,2]
[385280476,1757735435352,-400.0,0.00035616,2]
[385280477,1757735435362,-401.48628178,0.00035616,2]
[385280478,1757735435372,-400.0,0.00035616,2]
[385280479,1757735435382,-400.0,0.00035616,2]
[385280480,1757735435392,-400.0,0.00035616,2]
[385280481,1757735435401,-400.0,0.00035616,2]
[385280482,1757735435411,-400.0,0.00035616,2]
[385280483,1757735435420,-400.0,0.00035616,2]
[385280484,1757735435430,-400.0,0.00035616,2]
[385280485,1757735435439,-622.6,0.00035616,2]
[385280486,1757735435449,-443.56,0.00035616,2]
[385280487,1757735435458,-301.37697745,0.00035616,2]
[385280488,1757735435468,-400.0,0.00035616,2]
[385280489,1757735435478,-400.0,0.00035616,2]
[385280490,1757735435487,-400.0,0.00035616,2]
[385280491,1757735435497,-400.0,0.00035616,2]
[385280492,1757735435507,-400.0,0.00035616,2]
[385280493,1757735435516,-400.0,0.00035616,2]
[385280494,1757735435536,-400.0,0.00035616,2]
[385280495,1757735435546,-400.0,0.00035616,2]
[385280496,1757735435557,-400.0,0.00035616,2]
[385280497,1757735435566,-400.0,0.00035616,2]
[385280498,1757735435576,-400.0,0.00035616,2]
[385280499,1757735435586,-238.92846557,0.00035616,2]
[385280500,1757735435595,-400.0,0.00035616,2]
[385280501,1757735435608,-400.0,0.00035616,2]
[385280502,1757735435618,-400.0,0.00035616,2]
[385280503,1757735435628,-500.0,0.00035616,2]
[385280504,1757735435638,-500.0,0.00035616,2]
[385280505,1757735435647,-500.0,0.00035616,2]
[385280506,1757735435657,-500.0,0.00035616,2]
[385280507,1757735435666,-400.0,0.00035616,2]
[385280508,1757735435676,-500.0,0.00035616,2]
[385280509,1757735435686,-400.0,0.00035616,2]
[385280510,1757735435695,-400.0,0.00035616,2]
[385280511,1757735435704,-400.0,0.00035616,2]
[385280512,1757735435713,-500.0,0.00035616,2]
[385280513,1757735435723,-500.0,0.00035616,2]
[385280514,1757735435734,-400.0,0.00035616,2]
[385280515,1757735435745,-500.0,0.00035616,2]
[385280516,1757735435755,-500.0,0.00035616,2]
[385280517,1757735435764,-500.0,0.00035616,2]
[385280518,1757735435773,-500.0,0.00035616,2]
[385280519,1757735435785,-400.0,0.00035616,2]
[385280520,1757735435794,-400.0,0.00035616,2]
[385280521,1757735435805,-400.0,0.00035616,2]
[385280522,1757735435817,-400.0,0.00035616,2]
[385280523,1757735435827,-400.0,0.00035616,2]
[385280524,1757735435836,-400.0,0.00035616,2]
[385280525,1757735435846,-400.0,0.00035616,2]
[385280526,1757735435855,-424.83,0.00035616,2]
[385280527,1757735435864,-400.0,0.00035616,2]
[385280528,1757735435875,-400.0,0.00035616,2]
[385280529,1757735435884,-400.0,0.00035616,2]
[385280530,1757735435893,-402.6741807,0.00035616,2]
[385280531,1757735435904,-400.0,0.00035616,2]
[385280532,1757735435913,-400.0,0.00035616,2]
[385280533,1757735435923,-400.0,0.00035616,2]
[385280534,1757735435932,-400.0,0.00035616,2]
[385280535,1757735435941,-400.0,0.00035616,2]
[385280536,1757735435951,-400.0,0.00035616,2]
[385280537,1757735435960,-402.88895062,0.00035616,2]
[385280538,1757735435970,-400.0,0.00035616,2]
[385280539,1757735435979,-400.0,0.00035616,2]
[385280540,1757735435989,-400.0,0.00035616,2]
[385280541,1757735435998,-91.37335496,0.00035616,2]
[385280568,1757735442702,-17510.27842978,0.00033759,2]
[385280569,1757735442744,-1234.0,0.00033759,2]
[385280634,1757735445531,-108.72157022,0.00033759,2]
[385280635,1757735445542,-194.43114702,0.00035616,2]
[385280636,1757735445590,-114.19549802,0.00035616,2]
[385280637,1757735445601,-400.0,0.00035616,2]
[385280638,1757735445613,-542.28,0.00035616,2]
[385280639,1757735445626,-400.0,0.00035616,2]
[385280640,1757735445639,-400.0,0.00035616,2]
[385280641,1757735445652,-400.0,0.00035616,2]
[385280642,1757735445664,-711.24,0.00035616,2]
[385280643,1757735445677,-387.55341019,0.00035616,2]
[385280644,1757735445761,-12.44658981,0.00035616,2]
[385280645,1757735445774,-400.0,0.00035616,2]
[385280646,1757735445787,-312.32250815,0.00035616,2]
[385280647,1757735445872,-88.90725147,0.00035616,2]
[385280648,1757735445884,-400.0,0.00035616,2]
[385280649,1757735445895,-402.56989174,0.00035616,2]
[385280650,1757735445907,-1000.0,0.00035616,2]
[385280651,1757735445919,-178.78285679,0.00035616,120]
[385280652,1757735445938,-777.68797122,0.00035616,120]
[385280653,1757735445951,-400.0,0.00035616,2]
[385280654,1757735445962,-400.0,0.00035616,2]
[385280655,1757735445974,-400.0,0.00035616,2]
[385280656,1757735445987,-400.0,0.00035616,2]
[385280657,1757735446001,-753.59,0.00035616,2]
[385280658,1757735446011,-400.0,0.00035616,2]
[385280659,1757735446023,-401.6546758,0.00035616,2]
[385280660,1757735446038,-400.0,0.00035616,2]
[385280661,1757735446050,-400.0,0.00035616,2]
[385280662,1757735446063,-400.0,0.00035616,2]
[385280663,1757735446074,-400.0,0.00035616,2]
[385280664,1757735446085,-400.0,0.00035616,2]
[385280665,1757735446096,-400.0,0.00035616,2]
[385280666,1757735446107,-400.0,0.00035616,2]
[385280667,1757735446119,-400.0,0.00035616,2]
[385280668,1757735446131,-443.26,0.00035616,2]
[385280669,1757735446142,-400.0,0.00035616,2]
[385280670,1757735446153,-400.0,0.00035616,2]
[385280671,1757735446164,-400.0,0.00035616,2]
[385280672,1757735446176,-402.03903373,0.00035616,2]
[385280673,1757735446187,-400.0,0.00035616,2]
[385280674,1757735446197,-400.0,0.00035616,2]
[385280675,1757735446209,-402.08597304,0.00035616,2]
[385280676,1757735446222,-400.0,0.00035616,2]
[385280677,1757735446233,-400.0,0.00035616,2]
[385280678,1757735446245,-636.86,0.00035616,2]
[385280679,1757735446257,-400.0,0.00035616,2]
[385280680,1757735446269,-400.0,0.00035616,2]
[385280681,1757735446281,-400.0,0.00035616,2]
[385280682,1757735446292,-401.91938938,0.00035616,2]
[385280683,1757735446304,-400.0,0.00035616,2]
[385280684,1757735446316,-756.55,0.00035616,2]
[385280685,1757735446328,-687.14,0.00035616,2]
[385280686,1757735446339,-400.0,0.00035616,2]
[385280687,1757735446351,-400.0,0.00035616,2]
[385280688,1757735446363,-400.0,0.00035616,2]
[385280689,1757735446374,-400.0,0.00035616,2]
[385280690,1757735446386,-400.0,0.00035616,2]
[385280691,1757735446397,-400.0,0.00035616,2]
[385280692,1757735446409,-400.0,0.00035616,2]
[385280694,1757735446419,-400.0,0.00035616,2]
[385280696,1757735446430,-400.0,0.00035616,2]
[385280697,1757735446441,-400.0,0.00035616,2]
[385280698,1757735446452,-400.0,0.00035616,2]
[385280699,1757735446464,-469.81,0.00035616,2]
[385280700,1757735446474,-400.0,0.00035616,2]
[385280701,1757735446486,-548.34,0.00035616,2]
[385280702,1757735446497,-400.0,0.00035616,2]
[385280703,1757735446509,-400.0,0.00035616,2]
[385280704,1757735446521,-821.56,0.00035616,2]
[385280705,1757735446531,-500.0,0.00035616,2]
[385280706,1757735446542,-500.0,0.00035616,2]
[385280707,1757735446552,-500.0,0.00035616,2]
[385280709,1757735446564,-744.63,0.00035616,2]
[385280711,1757735446575,-500.0,0.00035616,2]
[385280713,1757735446585,-500.0,0.00035616,2]
[385280715,1757735446595,-500.0,0.00035616,2]
[385280717,1757735446606,-500.0,0.00035616,2]
[385280719,1757735446616,-500.0,0.00035616,2]
[385280721,1757735446627,-500.0,0.00035616,2]
[385280722,1757735446638,-500.0,0.00035616,2]
[385280723,1757735446650,-500.0,0.00035616,2]
[385280724,1757735446661,-400.0,0.00035616,2]
[385280725,1757735446672,-400.0,0.00035616,2]
[385280726,1757735446682,-400.0,0.00035616,2]
[385280727,1757735446692,-400.0,0.00035616,2]
[385280728,1757735446703,-400.0,0.00035616,2]
[385280729,1757735446713,-415.81,0.00035616,2]
[385280730,1757735446723,-400.0,0.00035616,2]
[385280731,1757735446734,-686.6,0.00035616,2]
[385280732,1757735446748,-400.0,0.00035616,2]
[385280733,1757735446759,-705.87,0.00035616,2]
[385280734,1757735446769,-810.63,0.00035616,2]
[385280735,1757735446780,-401.80124633,0.00035616,2]
[385280736,1757735446793,-400.0,0.00035616,2]
[385280737,1757735446806,-400.0,0.00035616,2]
[385280738,1757735446818,-400.0,0.00035616,2]
[385280739,1757735446831,-654.77,0.00035616,2]
[385280740,1757735446841,-532.44084781,0.00035616,2]
[385280742,1757735446852,-400.0,0.00035616,2]
[385280743,1757735446862,-400.0,0.00035616,2]
[385280744,1757735446873,-400.0,0.00035616,2]
[385280745,1757735446884,-400.0,0.00035616,2]
[385280746,1757735446896,-400.0,0.00035616,2]
[385280747,1757735446908,-400.0,0.00035616,2]
[385280748,1757735446920,-402.50271108,0.00035616,2]
[385280749,1757735446934,-400.0,0.00035616,2]
[385280750,1757735446947,-400.0,0.00035616,2]
[385280751,1757735446959,-400.0,0.00035616,2]
[385280752,1757735446969,-400.0,0.00035616,2]
[385280753,1757735446981,-400.0,0.00035616,2]
[385280754,1757735446991,-500.0,0.00035616,2]
[385280755,1757735447002,-500.0,0.00035616,2]
[385280756,1757735447012,-500.0,0.00035616,2]
[385280757,1757735447022,-500.0,0.00035616,2]
[385280758,1757735447033,-400.0,0.00035616,2]
[385280759,1757735447045,-400.0,0.00035616,2]
[385280760,1757735447058,-500.0,0.00035616,2]
[385280761,1757735447070,-415.77747967,0.00035616,2]
[385280762,1757735447080,-400.0,0.00035616,2]
[385280763,1757735447092,-400.0,0.00035616,2]
[385280764,1757735447103,-786.77,0.00035616,2]
[385280765,1757735447114,-400.0,0.00035616,2]
[385280766,1757735447124,-400.0,0.00035616,2]
[385280767,1757735447134,-400.0,0.00035616,2]
[385280768,1757735447145,-400.0,0.00035616,2]
[385280769,1757735447157,-400.0,0.00035616,2]
[385280770,1757735447416,-400.0,0.00035616,2]
[385280771,1757735447449,-400.0,0.00035616,2]
[385280772,1757735447460,-400.0,0.00035616,2]
[385280773,1757735447470,-400.0,0.00035616,2]
[385280774,1757735447481,-400.0,0.00035616,2]
[385280775,1757735447492,-500.0,0.00035616,2]
[385280776,1757735447503,-400.0,0.00035616,2]
[385280777,1757735447514,-500.0,0.00035616,2]
[385280778,1757735447525,-500.0,0.00035616,2]
[385280779,1757735447536,-500.0,0.00035616,2]
[385280780,1757735447549,-500.0,0.00035616,2]
[385280781,1757735447559,-420.97,0.00035616,2]
[385280782,1757735447569,-500.0,0.00035616,2]
[385280783,1757735447581,-500.0,0.00035616,2]
[385280784,1757735447591,-500.0,0.00035616,2]
[385280785,1757735447601,-400.0,0.00035616,2]
[385280786,1757735447612,-524.20925898,0.00035616,2]
[385280787,1757735447622,-400.0,0.00035616,2]
[385280788,1757735447634,-400.0,0.00035616,2]
[385280789,1757735447644,-400.0,0.00035616,2]
[385280790,1757735447655,-400.0,0.00035616,2]
[385280791,1757735447666,-400.0,0.00035616,2]
[385280792,1757735447676,-400.0,0.00035616,2]
[385280793,1757735447687,-234.54473814,0.00035616,15]
[385280794,1757735447697,-400.0,0.00035616,2]
[385280795,1757735447708,-400.0,0.00035616,2]
[385280796,1757735447718,-400.0,0.00035616,2]
[385280797,1757735447727,-400.0,0.00035616,2]
[385280798,1757735447738,-400.0,0.00035616,2]
[385280799,1757735447749,-400.0,0.00035616,2]
[385280800,1757735447758,-317.21227852,0.00035616,2]
[385280801,1757735447768,-400.0,0.00035616,2]
[385280802,1757735447778,-1182.78,0.00035616,2]
[385280803,1757735447788,-400.0,0.00035616,2]
[385280804,1757735447798,-537.93,0.00035616,2]
[385280805,1757735447808,-522.08,0.00035616,2]
[385280806,1757735447822,-400.0,0.00035616,2]
[385280807,1757735447831,-400.0,0.00035616,2]
[385280808,1757735447842,-305.91427865,0.00035616,2]
[385280809,1757735448017,-94.08572135,0.00035616,2]
[385280810,1757735448028,-402.79750753,0.00035616,2]
[385280811,1757735448039,-400.0,0.00035616,2]
[385280812,1757735448048,-400.0,0.00035616,2]
[385280813,1757735448059,-400.0,0.00035616,2]
[385280814,1757735448069,-400.0,0.00035616,2]
[385280815,1757735448080,-400.0,0.00035616,2]
[385280816,1757735448090,-400.0,0.00035616,2]
[385280817,1757735448100,-246.92327319,0.00035616,2]
[385280818,1757736569154,-1750.0,0.00024,21]
[385280819,1757736569174,-460.84855439,0.00024899,2]
[385280820,1757736569197,-5752.88891146,0.000249,2]
[385280829,1757736632120,-1412.92,0.000249,2]
[385280830,1757736632144,-1527.0472318,0.000249,2]
[385280831,1757736632155,-275.831015,0.000249,2]
[385280832,1757736632173,-1200.76327563,0.000249,2]
[385280839,1757736637503,-1180.82022608,0.000249,2]
[385280840,1757736637514,-665.44409936,0.000249,2]
[385280841,1757736637525,-413.65821312,0.000249,2]
[385280842,1757736637534,-377.08240835,0.00027297,2]
[385280843,1757736637719,-373.85943195,0.00027297,2]
[385280844,1757736637728,-150.66,0.00027397,2]
[385280845,1757736637737,-237.665,0.00031076,28]
[385280846,1757736637746,-4168.0,0.00032455,2]
[385280847,1757736637755,-726.0,0.00032455,2]
[385280848,1757736637764,-6173.0,0.00032455,2]
[385280849,1757736637774,-2248.66686347,0.00032455,2]
[385280850,1757736637786,-13828.19813653,0.00032455,2]
[385280851,1757736637795,-150.0,0.00032954,2]
[385280852,1757736637804,-150.0,0.00033068,2]
[385280853,1757736637813,-150.0,0.00033182,2]
[385280854,1757736637823,-150.0,0.00033296,2]
[385280855,1757736637832,-210.29,0.0003341,2]
[385280856,1757736637840,-269.10549179,0.00033738,2]
[385280865,1757736639660,-8.25129873,0.00033738,2]
[385280866,1757736639671,-219.0,0.00033757,2]